fUST/lending_fUST_20240121
["ID","MTS","AMOUNT","RATE_DAILY","PERIOD"]
[312353691,1705816547307,-150.0,0.0002831,2]
[312353692,1705816547328,-612.29394151,0.00028766,2]
[312353785,1705817439962,-154.70605849,0.00027121,4]
[312353786,1705817439972,-155.16744932,0.00027369,2]
[312353787,1705817439983,-1811.41770485,0.00028309,2]
[312353788,1705817439992,-150.0,0.0002831,2]
[312353789,1705817440002,-167.117432,0.00028682,2]
[312353790,1705817440011,-333.92093971,0.00028766,2]
[312353791,1705817440021,-305.65151206,0.00028766,2]
[312353792,1705817440030,-189.766403,0.00028767,2]
[312353793,1705817440039,-155.0,0.00029958,2]
[312353794,1705817440047,-2406.82921383,0.0003,2]
[312353796,1705817440056,-153.0,0.0003,2]
[312353798,1705817440065,-153.0,0.0003,2]
[312353800,1705817440074,-153.8858069,0.0003,2]
[312353802,1705817440084,-153.0,0.0003,2]
[312353804,1705817440093,-199.1433421,0.0003,2]
[312353806,1705817440102,-155.9654129,0.0003,2]
[312353808,1705817440111,-153.0,0.0003,2]
[312353810,1705817440120,-153.0,0.0003,2]
[312353812,1705817440133,-153.0,0.0003,2]
[312353814,1705817440142,-153.0,0.0003,2]
[312353816,1705817440151,-153.0,0.0003,2]
[312353818,1705817440161,-199.1433421,0.0003,2]
[312353820,1705817440171,-153.0,0.0003,2]
[312353822,1705817440180,-153.0,0.0003,2]
[312353824,1705817440189,-153.0,0.0003,2]
[312353826,1705817440199,-153.0,0.0003,2]
[312353827,1705817440209,-199.1433421,0.0003,2]
[312353829,1705817440222,-153.0,0.0003,2]
[312353832,1705817440232,-153.0,0.0003,2]
[312353833,1705817440243,-153.0,0.0003,2]
[312353836,1705817440253,-153.0,0.0003,2]
[312353838,1705817440262,-153.0,0.0003,2]
[312353840,1705817440272,-153.0,0.0003,2]
[312353841,1705817440281,-199.1433421,0.0003,2]
[312353843,1705817440290,-153.0,0.0003,2]
[312353845,1705817440299,-153.0,0.0003,2]
[312353848,1705817440308,-153.0,0.0003,2]
[312353849,1705817440317,-199.1433421,0.0003,2]
[312353852,1705817440327,-153.0,0.0003,2]
[312353854,1705817440336,-153.0,0.0003,2]
[312353856,1705817440346,-153.0,0.0003,2]
[312353857,1705817440356,-153.0,0.0003,2]
[312353860,1705817440366,-153.0,0.0003,2]
[312353861,1705817440375,-153.0,0.0003,2]
[312353863,1705817440384,-311.6615433,0.0003,2]
[312353865,1705817440393,-198.5426239,0.0003,2]
[312353867,1705817440402,-306.0,0.0003,2]
[312353868,1705817440411,-153.0,0.0003,2]
[312353870,1705817440420,-153.0,0.0003,2]
[312353871,1705817440429,-153.0,0.0003,2]
[312353873,1705817440438,-153.0,0.0003,2]
[312353874,1705817440447,-153.0,0.0003,2]
[312353875,1705817440456,-153.0,0.0003,2]
[312353876,1705817440465,-153.0,0.0003,2]
[312353877,1705817440475,-153.0,0.0003,2]
[312353878,1705817440485,-153.0,0.0003,2]
[312353879,1705817440495,-153.0,0.0003,2]
[312353880,1705817440505,-589.40995748,0.00030036,2]
[312353881,1705817440514,-541.5,0.00030126,3]
[312353882,1705817440524,-571.46508143,0.00030134,4]
[312353883,1705817440534,-2585.22569582,0.00030134,4]
[312353884,1705817440544,-1076.80949215,0.00030134,4]
[312353885,1705817440554,-260.45804171,0.00030134,7]
[312353886,1705817440563,-587.69337227,0.00030134,4]
[312353887,1705817440573,-155.0,0.00030134,4]
[312353888,1705817440582,-155.0,0.00030135,2]
[312353889,1705817440592,-8177.93826556,0.00030135,4]
[312353890,1705817440601,-849.89,0.00030135,2]
[312353891,1705817440611,-849.89,0.00030135,2]
[312353892,1705817440621,-849.89,0.00030135,2]
[312353893,1705817440630,-849.89,0.00030135,2]
[312353894,1705817440640,-849.89,0.00030135,2]
[312353895,1705817440648,-849.89,0.00030135,2]
[312353896,1705817440657,-849.89,0.00030135,2]
[312353897,1705817440666,-830.66,0.00030135,2]
[312353898,1705817440677,-821.02,0.00030135,2]
[312353899,1705817440686,-1000.0,0.00030135,3]
[312353900,1705817440696,-1000.0,0.00030135,3]
[312353901,1705817440705,-1000.0,0.00030135,3]
[312353902,1705817440715,-1000.0,0.00030135,3]
[312353904,1705817440724,-438.96962726,0.00030135,3]
[312353907,1705817440733,-500.0,0.00030136,2]
[312353909,1705817440743,-500.0,0.00030136,2]
[312353910,1705817440752,-500.0,0.00030136,2]
[312353911,1705817440761,-515.46337371,0.00030136,2]
[312353912,1705817440770,-515.76613026,0.00030136,2]
[312353913,1705817440779,-500.0,0.00030136,2]
[312353914,1705817440788,-500.0,0.00030136,2]
[312353915,1705817440797,-697.02,0.00030136,2]
[312353917,1705817440806,-336.99499523,0.00030136,2]
[312353918,1705817440932,-500.0,0.00030136,2]
[312353919,1705817440942,-500.0,0.00030136,2]
[312353920,1705817440951,-618.39119717,0.00030136,2]
[312353921,1705817440960,-500.0,0.00030136,2]
[312353922,1705817440969,-500.0,0.00030136,2]
[312353923,1705817440979,-500.0,0.00030136,2]
[312353924,1705817440988,-500.41383946,0.00030136,2]
[312353925,1705817440997,-500.0,0.00030136,2]
[312353926,1705817441008,-500.70971563,0.00030136,2]
[312353927,1705817441017,-500.0,0.00030136,2]
[312353928,1705817441026,-500.0,0.00030136,2]
[312353929,1705817441035,-509.35654559,0.00030136,2]
[312353930,1705817441044,-428.19019703,0.00030136,2]
[312353931,1705817441053,-501.19961587,0.00030136,2]
[312353932,1705817441062,-500.0,0.00030136,2]
[312353933,1705817441071,-530.2390323,0.00030136,2]
[312353934,1705817441080,-500.0,0.00030136,2]
[312353935,1705817441089,-500.91072414,0.00030136,2]
[312353936,1705817441098,-500.0,0.00030136,2]
[312353937,1705817441107,-500.0,0.00030136,2]
[312353938,1705817441116,-511.79386272,0.00030136,2]
[312353939,1705817441127,-500.58296436,0.00030136,2]
[312353940,1705817441140,-500.0,0.00030136,2]
[312353941,1705817441149,-298.90422655,0.00030136,2]
[312353942,1705817441158,-508.80446003,0.00030136,2]
[312353943,1705817441167,-500.0,0.00030136,2]
[312353944,1705817441176,-157.15279916,0.00030136,2]
[312353945,1705817441186,-500.0,0.00030136,2]
[312353946,1705817441195,-500.0,0.00030136,2]
[312353947,1705817441203,-500.0,0.00030136,2]
[312353948,1705817441215,-500.0,0.00030136,2]
[312353949,1705817441226,-500.0,0.00030136,2]
[312353950,1705817441237,-500.0,0.00030136,2]
[312353951,1705817441247,-335.16007594,0.00030136,2]
[312353952,1705817441256,-500.67314199,0.00030136,2]
[312353953,1705817441266,-500.0,0.00030136,2]
[312353954,1705817441276,-500.0,0.00030136,2]
[312353955,1705817441285,-500.0,0.00030136,2]
[312353956,1705817441295,-500.0,0.00030136,2]
[312353957,1705817441305,-500.0,0.00030136,2]
[312353958,1705817441314,-500.0,0.00030136,2]
[312353959,1705817441326,-500.0,0.00030136,2]
[312353960,1705817441337,-500.0,0.00030136,2]
[312353961,1705817441347,-500.0,0.00030136,2]
[312353962,1705817441357,-500.0,0.00030136,2]
[312353963,1705817441367,-500.0,0.00030136,2]
[312353964,1705817441376,-500.0,0.00030136,2]
[312353965,1705817441386,-500.0,0.00030136,2]
[312353966,1705817441395,-500.0,0.00030136,2]
[312353967,1705817441406,-500.0,0.00030136,2]
[312353968,1705817441416,-500.0,0.00030136,2]
[312353969,1705817441425,-500.0,0.00030136,2]
[312353970,1705817441434,-500.0,0.00030136,2]
[312353971,1705817441443,-500.0,0.00030136,2]
[312353972,1705817441452,-655.43,0.00030136,2]
[312353973,1705817441461,-500.0,0.00030136,2]
[312353974,1705817441470,-500.0,0.00030136,2]
[312353975,1705817441479,-500.0,0.00030136,2]
[312353976,1705817441489,-500.0,0.00030136,2]
[312353977,1705817441498,-500.0,0.00030136,2]
[312353978,1705817441507,-500.0,0.00030136,2]
[312353979,1705817441517,-500.0,0.00030136,2]
[312353980,1705817441527,-500.0,0.00030136,2]
[312353981,1705817441537,-327.16439913,0.00030136,2]
[312353982,1705817441546,-500.0,0.00030136,2]
[312353983,1705817441556,-638.85,0.00030136,2]
[312353984,1705817441565,-1000.0,0.00030136,2]
[312353985,1705817441574,-500.0,0.00030136,2]
[312353986,1705817441584,-500.0,0.00030136,2]
[312353987,1705817441593,-1227.9,0.00030136,2]
[312353988,1705817441603,-500.0,0.00030136,2]
[312353989,1705817441612,-831.6,0.00030136,2]
[312353990,1705817441622,-500.0,0.00030136,2]
[312353991,1705817441631,-500.0,0.00030136,2]
[312353992,1705817441640,-500.0,0.00030136,2]
[312353993,1705817441650,-500.0,0.00030136,2]
[312353994,1705817441659,-462.21722672,0.00030136,2]
[312353995,1705817441668,-355.36602426,0.00030136,2]
[312353996,1705817441679,-500.0,0.00030136,2]
[312353997,1705817441689,-500.0,0.00030136,2]
[312353998,1705817441698,-101.55626706,0.00030136,2]
[312353999,1705817441717,-399.48405216,0.00030136,2]
[312354000,1705817441726,-500.0,0.00030136,2]
[312354001,1705817441735,-500.0,0.00030136,2]
[312354002,1705817441745,-500.0,0.00030136,2]
[312354003,1705817441754,-676.98,0.00030136,2]
[312354004,1705817441763,-500.0,0.00030136,2]
[312354005,1705817441773,-500.0,0.00030136,2]
[312354006,1705817441782,-387.91365375,0.00030136,2]
[312354007,1705817441791,-500.0,0.00030136,2]
[312354008,1705817441801,-500.0,0.00030136,2]
[312354009,1705817441810,-500.0,0.00030136,2]
[312354010,1705817441818,-500.0,0.00030136,2]
[312354011,1705817441828,-500.0,0.00030136,2]
[312354012,1705817441837,-500.0,0.00030136,2]
[312354013,1705817441846,-500.0,0.00030136,2]
[312354014,1705817441855,-500.0,0.00030136,2]
[312354015,1705817441864,-500.0,0.00030136,2]
[312354016,1705817441873,-500.0,0.00030136,2]
[312354017,1705817441882,-500.0,0.00030136,2]
[312354018,1705817441891,-500.0,0.00030136,2]
[312354019,1705817441900,-638.59,0.00030136,2]
[312354020,1705817441909,-1031.0,0.00030136,2]
[312354021,1705817441919,-500.0,0.00030136,2]
[312354022,1705817441928,-213.03649456,0.00030136,2]
[312354023,1705817441937,-1000.0,0.00030136,2]
[312354024,1705817441946,-500.0,0.00030136,2]
[312354025,1705817441955,-500.0,0.00030136,2]
[312354026,1705817441964,-500.0,0.00030136,2]
[312354027,1705817441973,-335.79645869,0.00030136,2]
[312354028,1705817441983,-500.0,0.00030136,2]
[312354029,1705817441992,-500.0,0.00030136,2]
[312354030,1705817442001,-500.0,0.00030136,2]
[312354031,1705817442010,-500.0,0.00030136,2]
[312354032,1705817442020,-500.0,0.00030136,2]
[312354033,1705817442029,-554.88569224,0.00030136,2]
[312354034,1705817442038,-735.3,0.00030136,2]
[312354035,1705817442047,-500.0,0.00030136,2]
[312354036,1705817442057,-500.0,0.00030136,2]
[312354037,1705817442066,-500.0,0.00030136,2]
[312354038,1705817442078,-500.0,0.00030136,2]
[312354039,1705817442092,-544.28003768,0.00030136,2]
[312354040,1705817442105,-500.0,0.00030136,2]
[312354041,1705817442119,-500.0,0.00030136,2]
[312354042,1705817442134,-500.0,0.00030136,2]
[312354043,1705817442144,-533.97445114,0.00030136,2]
[312354044,1705817442156,-662.27,0.00030136,2]
[312354045,1705817442167,-506.69811154,0.00030136,2]
[312354046,1705817442180,-612.85,0.00030136,2]
[312354047,1705817442194,-502.32093715,0.00030136,2]
[312354048,1705817442207,-500.0,0.00030136,2]
[312354049,1705817442220,-661.72,0.00030136,2]
[312354050,1705817442232,-500.0,0.00030136,2]
[312354051,1705817442244,-500.0,0.00030136,2]
[312354052,1705817442255,-500.0,0.00030136,2]
[312354053,1705817442267,-1000.0,0.00030136,2]
[312354054,1705817442279,-377.5790184,0.00030136,2]
[312354055,1705817442292,-1296.72,0.00030136,2]
[312354056,1705817442305,-500.0,0.00030136,2]
[312354057,1705817442316,-500.0,0.00030136,2]
[312354058,1705817442328,-500.0,0.00030136,2]
[312354059,1705817442341,-1117.92,0.00030136,2]
[312354060,1705817442353,-500.0,0.00030136,2]
[312354061,1705817442363,-500.0,0.00030136,2]
[312354062,1705817442374,-500.0,0.00030136,2]
[312354063,1705817442389,-500.0,0.00030136,2]
[312354064,1705817442401,-500.0,0.00030136,2]
[312354065,1705817442413,-500.0,0.00030136,2]
[312354066,1705817442425,-500.0,0.00030136,2]
[312354067,1705817442437,-500.0,0.00030136,2]
[312354068,1705817442449,-500.0,0.00030136,2]
[312354069,1705817442461,-500.0,0.00030136,2]
[312354070,1705817442473,-500.0,0.00030136,2]
[312354071,1705817442486,-500.0,0.00030136,2]
[312354072,1705817442498,-500.0,0.00030136,2]
[312354073,1705817442513,-500.0,0.00030136,2]
[312354074,1705817442527,-1055.53,0.00030136,2]
[312354075,1705817442539,-1050.99,0.00030136,2]
[312354076,1705817442551,-581.40000945,0.00030136,2]
[312354077,1705817442561,-500.0,0.00030136,2]
[312354078,1705817442571,-500.0,0.00030136,2]
[312354079,1705817442582,-500.0,0.00030136,2]
[312354080,1705817442593,-500.0,0.00030136,2]
[312354081,1705817442605,-500.0,0.00030136,2]
[312354082,1705817442617,-565.54,0.00030136,2]
[312354083,1705817442628,-1456.35,0.00030136,2]
[312354084,1705817442640,-500.0,0.00030136,2]
[312354085,1705817442651,-500.0,0.00030136,2]
[312354086,1705817442662,-1000.0,0.00030136,2]
[312354087,1705817442674,-500.0,0.00030136,2]
[312354088,1705817442685,-2090.36,0.00030136,2]
[312354089,1705817442696,-500.0,0.00030136,2]
[312354090,1705817442707,-500.0,0.00030136,2]
[312354091,1705817442717,-500.0,0.00030136,2]
[312354092,1705817442728,-500.0,0.00030136,2]
[312354093,1705817442740,-603.03,0.00030136,2]
[312354094,1705817442751,-512.54465079,0.00030136,2]
[312354095,1705817442762,-2843.26,0.00030136,2]
[312354096,1705817442772,-500.0,0.00030136,2]
[312354097,1705817442783,-500.0,0.00030136,2]
[312354098,1705817442795,-736.19,0.00030136,2]
[312354099,1705817442807,-1308.11,0.00030136,2]
[312354100,1705817442819,-500.0,0.00030136,2]
[312354101,1705817442830,-538.03317882,0.00030136,2]
[312354102,1705817442841,-500.0,0.00030136,2]
[312354103,1705817442852,-502.08848688,0.00030136,2]
[312354104,1705817442863,-500.0,0.00030136,2]
[312354105,1705817442877,-500.0,0.00030136,2]
[312354106,1705817442888,-390.67432736,0.00030136,2]
[312354107,1705817442900,-823.32,0.00030136,2]
[312354108,1705817442912,-500.0,0.00030136,2]
[312354109,1705817442923,-500.0,0.00030136,2]
[312354110,1705817442934,-500.0,0.00030136,2]
[312354111,1705817442946,-1000.0,0.00030136,2]
[312354112,1705817442957,-500.0,0.00030136,2]
[312354113,1705817442970,-500.0,0.00030136,2]
[312354114,1705817442983,-503.24194096,0.00030136,2]
[312354115,1705817442993,-500.0,0.00030136,2]
[312354116,1705817443006,-504.87,0.00030136,2]
[312354117,1705817443016,-500.0,0.00030136,2]
[312354118,1705817443029,-500.0,0.00030136,2]
[312354119,1705817443039,-500.0,0.00030136,2]
[312354120,1705817443050,-500.0,0.00030136,2]
[312354121,1705817443062,-500.0,0.00030136,2]
[312354123,1705817443073,-500.0,0.00030136,2]
[312354124,1705817443083,-500.0,0.00030136,2]
[312354125,1705817443094,-500.0,0.00030136,2]
[312354126,1705817443105,-500.0,0.00030136,14]
[312354127,1705817443116,-500.0,0.00030136,2]
[312354128,1705817443127,-500.85348377,0.00030136,2]
[312354129,1705817443142,-500.85399954,0.00030136,2]
[312354130,1705817443153,-500.0,0.00030136,2]
[312354131,1705817443164,-2053.12,0.00030136,2]
[312354133,1705817443176,-500.0,0.00030136,2]
[312354135,1705817443187,-525.72459261,0.00030136,2]
[312354137,1705817443198,-150.0,0.00030136,2]
[312354139,1705817443210,-500.0,0.00030136,2]
[312354141,1705817443220,-500.0,0.00030136,2]
[312354143,1705817443232,-500.17407216,0.00030136,2]
[312354146,1705817443242,-500.0,0.00030136,2]
[312354148,1705817443253,-501.21615261,0.00030136,2]
[312354150,1705817443264,-1977.64,0.00030136,2]
[312354152,1705817443275,-500.0,0.00030136,2]
[312354154,1705817443287,-645.22,0.00030136,2]
[312354156,1705817443299,-200.0,0.00030136,2]
[312354159,1705817443310,-396.65358356,0.00030136,2]
[312354161,1705817443320,-500.0,0.00030136,2]
[312354163,1705817443332,-500.0,0.00030136,2]
[312354165,1705817443343,-679.1,0.00030136,2]
[312354168,1705817443354,-500.0,0.00030136,2]
[312354170,1705817443366,-949.34,0.00030136,2]
[312354172,1705817443377,-623.93,0.00030136,2]
[312354174,1705817443388,-500.0,0.00030136,2]
[312354176,1705817443399,-500.0,0.00030136,2]
[312354178,1705817443409,-546.23,0.00030136,2]
[312354180,1705817443418,-1219.2,0.00030136,2]
[312354182,1705817443428,-502.52181998,0.00030136,2]
[312354185,1705817443438,-500.0,0.00030136,2]
[312354188,1705817443447,-6062.92,0.00030136,2]
[312354190,1705817443456,-8821.18,0.00030136,2]
[312354205,1705817443613,-500.0,0.00030136,2]
[312354206,1705817443630,-237.04279308,0.00030136,2]
[312354207,1705817443640,-500.0,0.00030136,2]
[312354208,1705817443649,-3146.07,0.00030136,2]
[312354209,1705817443658,-500.0,0.00030136,2]
[312354210,1705817443667,-1215.44,0.00030136,2]
[312354211,1705817443677,-500.0,0.00030136,2]
[312354212,1705817443687,-500.0,0.00030136,2]
[312354213,1705817443696,-500.0,0.00030136,2]
[312354214,1705817443706,-500.0,0.00030136,2]
[312354215,1705817443715,-500.0,0.00030136,2]
[312354216,1705817443724,-500.0,0.00030136,2]
[312354217,1705817443734,-500.0,0.00030136,2]
[312354218,1705817443744,-500.0,0.00030136,2]
[312354219,1705817443753,-500.0,0.00030136,2]
[312354220,1705817443763,-500.0,0.00030136,2]
[312354221,1705817443772,-500.0,0.00030136,2]
[312354222,1705817443781,-500.0,0.00030136,2]
[312354223,1705817443790,-5986.27,0.00030136,2]
[312354224,1705817443799,-500.0,0.00030136,2]
[312354225,1705817443809,-1364.95,0.00030136,2]
[312354226,1705817443818,-500.0,0.00030136,2]
[312354227,1705817443827,-168.67014178,0.00030136,2]
[312354236,1705817446783,-153.0,0.0003,2]
[312354237,1705817446794,-153.0,0.0003,2]
[312354238,1705817446803,-451.25,0.00030126,3]
[312354239,1705817446813,-98.91796637,0.00030136,2]
[312354240,1705817446856,-951.51189185,0.00030136,2]
[312354241,1705817446866,-8285.66,0.00030136,2]
[312354242,1705817446876,-733.55,0.00030136,2]
[312354243,1705817446886,-500.0,0.00030136,2]
[312354244,1705817446896,-1218.8366684,0.00030136,2]
[312354247,1705817719605,-154.70605849,0.00027121,4]
[312354248,1705817719627,-168.7335693,0.0002864,2]
[312354249,1705817719649,-1811.41770485,0.00028765,2]
[312354250,1705817719669,-306.53932035,0.00028766,2]
[312354251,1705817719690,-1500.0,0.0003,2]
[312354252,1705817719711,-1978.60334701,0.0003,2]
[312354253,1705817784936,-154.70605849,0.00027121,4]
[312354254,1705817784958,-0.29394151,0.00029958,2]
[312354255,1705817912509,-323.52155902,0.00027118,2]
[312354256,1705817912533,-154.70605849,0.00027119,4]
[312354257,1705817912555,-1811.41770485,0.00028766,2]
[312354258,1705817912575,-60.35467764,0.00028767,2]
[312354266,1705818429444,-154.70605849,0.00027117,4]
[312354267,1705818429471,-1447.29394151,0.0002712,2]
[312354371,1705818637915,-154.70605849,0.00027119,4]
[312354372,1705818637926,-137.24263608,0.0002712,2]
[312354373,1705818637939,-5.2729207,0.0002712,2]
[312354374,1705818637948,-762.66354568,0.00027121,5]
[312354375,1705818637957,-129.41172536,0.00028767,2]
[312354377,1705818637967,-307.6683179,0.00029958,2]
[312354379,1705818637976,-21.39665299,0.0003,2]
[312354381,1705818637985,-0.7936707,0.00030126,3]
[312354383,1705818637996,-1648.1763293,0.00030126,3]
[312354385,1705818638005,-178.65716453,0.00030134,4]
[312354387,1705818638014,-325.27210074,0.00030134,4]
[312354388,1705818638024,-827.39611214,0.00030134,4]
[312354390,1705818638035,-155.27397355,0.00030134,4]
[312354392,1705818638044,-630.75243678,0.00030134,4]
[312354394,1705818638054,-156.79527344,0.00030134,4]
[312354396,1705818638063,-826.45398618,0.00030134,4]
[312354398,1705818638073,-155.74648817,0.00030134,4]
[312354400,1705818638083,-155.13128101,0.00030134,4]
[312354402,1705818638092,-1373.03962034,0.00030134,4]
[312354404,1705818638101,-89.99027887,0.00030134,4]
[312354407,1705818638113,-1516.58715699,0.00030134,4]
[312354409,1705818638122,-678.27625246,0.00030134,4]
[312354411,1705818638131,-1027.69635196,0.00030134,4]
[312354413,1705818638140,-277.23266737,0.00030134,30]
[312354415,1705818638149,-2320.42125945,0.00030134,2]
[312354417,1705818638158,-3980.02828733,0.00030134,4]
[312354419,1705818638167,-555.24243185,0.00030134,4]
[312354421,1705818638176,-874.18725797,0.00030134,4]
[312354423,1705818638185,-350.69063474,0.00030134,4]
[312354425,1705818638195,-473.22201327,0.00030134,4]
[312354427,1705818638205,-2825.4544999,0.00030134,4]
[312354429,1705818638214,-2443.58514652,0.00030134,4]
[312354431,1705818638223,-591.34984357,0.00030134,4]
[312354433,1705818638233,-154.78330338,0.00030134,2]
[312354435,1705818638241,-226.19691074,0.00030134,4]
[312354436,1705818638250,-314.1231325,0.00030134,4]
[312354437,1705818638260,-313.92347456,0.00030135,4]
[312354438,1705818638269,-4811.28224285,0.00030135,4]
[312354439,1705818638279,-544.8,0.00030136,2]
[312354440,1705818638287,-500.16510899,0.00030136,2]
[312354441,1705818638297,-500.0,0.00030136,2]
[312354442,1705818638307,-500.0,0.00030136,2]
[312354443,1705818638316,-686.69676861,0.00030136,4]
[312354444,1705818638325,-500.0,0.00030136,2]
[312354445,1705818638334,-500.0,0.00030136,2]
[312354446,1705818638343,-500.0,0.00030136,2]
[312354447,1705818638353,-500.0,0.00030136,2]
[312354448,1705818638362,-500.0,0.00030136,2]
[312354449,1705818638371,-500.0,0.00030136,2]
[312354450,1705818638381,-500.0,0.00030136,2]
[312354451,1705818638390,-500.0,0.00030136,2]
[312354452,1705818638399,-988.04,0.00030136,2]
[312354453,1705818638408,-500.0,0.00030136,2]
[312354454,1705818638417,-500.0,0.00030136,2]
[312354455,1705818638426,-500.0,0.00030136,2]
[312354456,1705818638434,-500.0,0.00030136,2]
[312354457,1705818638444,-502.32093715,0.00030136,2]
[312354458,1705818638454,-500.0,0.00030136,2]
[312354459,1705818638463,-1117.92,0.00030136,2]
[312354460,1705818638474,-500.0,0.00030136,2]
[312354461,1705818638482,-500.0,0.00030136,2]
[312354462,1705818638492,-500.0,0.00030136,2]
[312354463,1705818638502,-500.0,0.00030136,2]
[312354464,1705818638511,-500.0,0.00030136,2]
[312354465,1705818638520,-500.0,0.00030136,2]
[312354466,1705818638530,-500.0,0.00030136,2]
[312354467,1705818638542,-500.0,0.00030136,2]
[312354468,1705818638553,-500.0,0.00030136,2]
[312354469,1705818638566,-500.0,0.00030136,2]
[312354470,1705818638578,-500.0,0.00030136,2]
[312354471,1705818638589,-500.0,0.00030136,2]
[312354472,1705818638598,-500.0,0.00030136,2]
[312354473,1705818638608,-612.23,0.00030136,2]
[312354474,1705818638618,-500.0,0.00030136,2]
[312354475,1705818638628,-500.0,0.00030136,2]
[312354476,1705818638638,-500.0,0.00030136,2]
[312354477,1705818638647,-200.0,0.00030136,2]
[312354478,1705818638656,-500.0,0.00030136,2]
[312354479,1705818638666,-623.93,0.00030136,2]
[312354480,1705818638675,-500.0,0.00030136,2]
[312354481,1705818638685,-661.72,0.00030136,2]
[312354482,1705818638693,-500.0,0.00030136,2]
[312354483,1705818638702,-500.0,0.00030136,2]
[312354484,1705818638712,-387.91365375,0.00030136,2]
[312354485,1705818638722,-500.0,0.00030136,2]
[312354486,1705818638731,-500.0,0.00030136,2]
[312354487,1705818638740,-500.0,0.00030136,2]
[312354488,1705818638750,-500.0,0.00030136,2]
[312354489,1705818638759,-500.0,0.00030136,2]
[312354490,1705818638768,-500.0,0.00030136,2]
[312354491,1705818638777,-500.0,0.00030136,2]
[312354492,1705818638786,-565.54,0.00030136,2]
[312354493,1705818638795,-500.0,0.00030136,2]
[312354494,1705818638805,-1000.0,0.00030136,2]
[312354495,1705818638815,-524.30201853,0.00030136,2]
[312354496,1705818638825,-500.0,0.00030136,2]
[312354497,1705818638834,-647.98810351,0.00030136,2]
[312354498,1705818638843,-1000.0,0.00030136,2]
[312354499,1705818638852,-500.0,0.00030136,2]
[312354500,1705818638863,-500.0,0.00030136,2]
[312354501,1705818638872,-500.0,0.00030136,2]
[312354502,1705818638881,-533.7492348,0.00030136,2]
[312354503,1705818638890,-630.44,0.00030136,2]
[312354504,1705818638899,-600.42402773,0.00030136,2]
[312354505,1705818638908,-500.0,0.00030136,2]
[312354506,1705818638918,-517.31,0.00030136,2]
[312354507,1705818638927,-500.0,0.00030136,2]
[312354508,1705818638937,-501.20678508,0.00030136,2]
[312354509,1705818638946,-500.0,0.00030136,2]
[312354510,1705818638955,-500.0,0.00030136,2]
[312354511,1705818638965,-272.02965758,0.00030136,2]
[312354512,1705818638974,-500.0,0.00030136,2]
[312354513,1705818638982,-500.0,0.00030136,2]
[312354514,1705818638991,-767.27,0.00030136,2]
[312354515,1705818639001,-500.0,0.00030136,2]
[312354516,1705818639010,-637.23312708,0.00030136,2]
[312354517,1705818639019,-500.0,0.00030136,2]
[312354518,1705818639029,-500.0,0.00030136,2]
[312354519,1705818639038,-513.36744023,0.00030136,2]
[312354520,1705818639047,-1000.0,0.00030136,2]
[312354521,1705818639056,-500.0,0.00030136,2]
[312354522,1705818639065,-1353.1,0.00030136,2]